[Event "Early-Titled-Tuesday-Blitz-October-10-2023"]
[Site "Chess.com"]
[Date "2023.10.10"]
[Round "2"]
[White "themind1hunter"]
[Black "Zurability"]
[Result "1/2-1/2"]
[WhiteElo "2547"]
[BlackElo "2739"]
[TimeControl "180+1"]
[EndTime "8:18:34 PDT"]
[Termination "Game drawn by repetition"]

1. e4 {[%clk 0:02:45.9]} 1... c5 {[%clk 0:03:00]} 2. Nf3 {[%clk 0:02:44]} 2...
d6 {[%clk 0:03:00.4]} 3. d4 {[%clk 0:02:44.2]} 3... cxd4 {[%clk 0:03:01.3]} 4.
Nxd4 {[%clk 0:02:44.6]} 4... Nf6 {[%clk 0:03:01.9]} 5. Nc3 {[%clk 0:02:45.2]}
5... g6 {[%clk 0:03:02.6]} 6. Be3 {[%clk 0:02:44.8]} 6... Bg7 {[%clk 0:03:03]}
7. f3 {[%clk 0:02:45.5]} 7... a6 {[%clk 0:03:03.2]} 8. Bc4 {[%clk 0:02:42]} 8...
Nbd7 {[%clk 0:03:00.8]} 9. Qd2 {[%clk 0:02:40.7]} 9... b5 {[%clk 0:02:59.9]} 10.
Bd5 {[%clk 0:02:40.6]} 10... Nxd5 {[%clk 0:02:57.2]} 11. Nxd5 {[%clk 0:02:37.1]}
11... Bb7 {[%clk 0:02:57.4]} 12. O-O-O {[%clk 0:02:36.7]} 12... Ne5 {[%clk
0:02:49.6]} 13. Bg5 {[%clk 0:02:34]} 13... Nc4 {[%clk 0:02:43.1]} 14. Qe1 {[%clk
0:02:05.3]} 14... Bxd4 {[%clk 0:02:16.1]} 15. Rxd4 {[%clk 0:01:57.2]} 15... f6
{[%clk 0:02:16.2]} 16. Bh6 {[%clk 0:01:47]} 16... Rc8 {[%clk 0:02:08.6]} 17. Kb1
{[%clk 0:01:45.9]} 17... Kf7 {[%clk 0:02:05.9]} 18. h4 {[%clk 0:01:44.4]} 18...
e6 {[%clk 0:01:56]} 19. Ne3 {[%clk 0:01:29.7]} 19... Qb6 {[%clk 0:01:39.8]} 20.
c3 {[%clk 0:01:25.6]} 20... Rhd8 {[%clk 0:01:18]} 21. Nxc4 {[%clk 0:01:22.6]}
21... Rxc4 {[%clk 0:01:16.1]} 22. Be3 {[%clk 0:01:23.1]} 22... Rxd4 {[%clk
0:01:13.2]} 23. Bxd4 {[%clk 0:01:23.3]} 23... Qc6 {[%clk 0:01:12.5]} 24. Qd2
{[%clk 0:01:22.3]} 24... e5 {[%clk 0:01:12]} 25. Qh6 {[%clk 0:01:10.5]} 25...
Kg8 {[%clk 0:01:00.1]} 26. h5 {[%clk 0:01:07.6]} 26... Qe8 {[%clk 0:00:53.8]}
27. Bb6 {[%clk 0:01:05.9]} 27... Rd7 {[%clk 0:00:52.6]} 28. hxg6 {[%clk
0:01:00.3]} 28... Qxg6 {[%clk 0:00:53.5]} 29. Qh3 {[%clk 0:00:50.8]} 29... Qf7
{[%clk 0:00:43.3]} 30. Qg4+ {[%clk 0:00:48.2]} 30... Kh8 {[%clk 0:00:40.1]} 31.
Rh6 {[%clk 0:00:44.7]} 31... d5 {[%clk 0:00:31.3]} 32. Bf2 {[%clk 0:00:28.8]}
32... dxe4 {[%clk 0:00:28]} 33. Bh4 {[%clk 0:00:28.5]} 33... Rd6 {[%clk
0:00:16.5]} 34. Qf5 {[%clk 0:00:23.6]} 34... Qd7 {[%clk 0:00:06.9]} 35. Bxf6+
{[%clk 0:00:22.7]} 35... Kg8 {[%clk 0:00:06.7]} 36. Qxd7 {[%clk 0:00:17.1]}
36... Rxd7 {[%clk 0:00:06.7]} 37. fxe4 {[%clk 0:00:16.8]} 37... Bxe4+ {[%clk
0:00:05.1]} 38. Kc1 {[%clk 0:00:17.4]} 38... Bxg2 {[%clk 0:00:04.3]} 39. Bxe5
{[%clk 0:00:18.1]} 39... Bd5 {[%clk 0:00:04.2]} 40. Rxa6 {[%clk 0:00:17.8]}
40... Re7 {[%clk 0:00:04.4]} 41. Bd4 {[%clk 0:00:17.5]} 41... Re2 {[%clk
0:00:04.1]} 42. a3 {[%clk 0:00:08.7]} 42... Bb3 {[%clk 0:00:04]} 43. Ra8+ {[%clk
0:00:02.7]} 43... Kf7 {[%clk 0:00:03.8]} 44. Ra7+ {[%clk 0:00:03.3]} 44... Kg6
{[%clk 0:00:02.9]} 45. Rg7+ {[%clk 0:00:03.9]} 45... Kh6 {[%clk 0:00:03.3]} 46.
Rg1 {[%clk 0:00:04.6]} 46... Rc2+ {[%clk 0:00:03.7]} 47. Kb1 {[%clk 0:00:04.5]}
47... Kh5 {[%clk 0:00:03.5]} 48. Rh1+ {[%clk 0:00:03.9]} 48... Kg6 {[%clk
0:00:03.8]} 49. Rg1+ {[%clk 0:00:04.4]} 49... Kf5 {[%clk 0:00:03.7]} 50. Rh1
{[%clk 0:00:03.3]} 50... Re2 {[%clk 0:00:03.4]} 51. Kc1 {[%clk 0:00:02]} 51...
Rc2+ {[%clk 0:00:03.5]} 52. Kb1 {[%clk 0:00:02.2]} 52... Re2 {[%clk 0:00:03.8]}
53. Kc1 {[%clk 0:00:02.7]} 53... Rc2+ {[%clk 0:00:02.8]} 54. Kb1 {[%clk
0:00:03.1]} 1/2-1/2

[Event "Early-Titled-Tuesday-Blitz-October-10-2023"]
[Site "Chess.com"]
[Date "2023.10.10"]
[Round "2"]
[White "HanSchut"]
[Black "Fh2411"]
[Result "1/2-1/2"]
[WhiteElo "2346"]
[BlackElo "2567"]
[TimeControl "180+1"]
[EndTime "8:18:35 PDT"]
[Termination "Game drawn - insufficient material"]

1. e4 {[%clk 0:03:00.9]} 1... c5 {[%clk 0:02:55.4]} 2. Nf3 {[%clk 0:03:01]} 2...
e6 {[%clk 0:02:55]} 3. c4 {[%clk 0:03:00.5]} 3... a6 {[%clk 0:02:53.3]} 4. Nc3
{[%clk 0:03:00.7]} 4... Nc6 {[%clk 0:02:50.1]} 5. Be2 {[%clk 0:02:59.9]} 5...
Nd4 {[%clk 0:02:47.6]} 6. O-O {[%clk 0:02:59.4]} 6... d6 {[%clk 0:02:48.1]} 7.
d3 {[%clk 0:02:59.8]} 7... g6 {[%clk 0:02:47.8]} 8. Be3 {[%clk 0:02:59.8]} 8...
Bg7 {[%clk 0:02:48.4]} 9. Rb1 {[%clk 0:02:58.7]} 9... Ne7 {[%clk 0:02:37.8]} 10.
Qd2 {[%clk 0:02:46.2]} 10... O-O {[%clk 0:02:36.7]} 11. Bh6 {[%clk 0:02:43.2]}
11... Nec6 {[%clk 0:02:34.8]} 12. Bxg7 {[%clk 0:02:42.4]} 12... Kxg7 {[%clk
0:02:35.7]} 13. Nxd4 {[%clk 0:02:40.6]} 13... cxd4 {[%clk 0:02:19.8]} 14. Nd1
{[%clk 0:02:35.7]} 14... e5 {[%clk 0:02:13.9]} 15. f4 {[%clk 0:02:33.7]} 15...
f5 {[%clk 0:02:14.5]} 16. b4 {[%clk 0:02:14.5]} 16... Be6 {[%clk 0:02:01.1]} 17.
b5 {[%clk 0:01:46.8]} 17... axb5 {[%clk 0:01:57.2]} 18. cxb5 {[%clk 0:01:47.7]}
18... Ne7 {[%clk 0:01:54.9]} 19. Rb2 {[%clk 0:01:46]} 19... Qa5 {[%clk
0:01:50.8]} 20. exf5 {[%clk 0:01:24.3]} 20... Nxf5 {[%clk 0:01:34.3]} 21. fxe5
{[%clk 0:01:13.6]} 21... Qxd2 {[%clk 0:01:31.5]} 22. Rxd2 {[%clk 0:01:12.6]}
22... dxe5 {[%clk 0:01:31.8]} 23. Bf3 {[%clk 0:01:02.7]} 23... Rf7 {[%clk
0:01:22.7]} 24. Re2 {[%clk 0:00:54.4]} 24... Nh4 {[%clk 0:00:40.4]} 25. Rxe5
{[%clk 0:00:50.5]} 25... Nxf3+ {[%clk 0:00:40.3]} 26. gxf3 {[%clk 0:00:43.7]}
26... Bxa2 {[%clk 0:00:36.1]} 27. Re4 {[%clk 0:00:38.1]} 27... Rd8 {[%clk
0:00:32.7]} 28. Nf2 {[%clk 0:00:24.3]} 28... Rxf3 {[%clk 0:00:31.1]} 29. Ng4
{[%clk 0:00:14.7]} 29... Rxf1+ {[%clk 0:00:29.6]} 30. Kxf1 {[%clk 0:00:15.6]}
30... h5 {[%clk 0:00:20.6]} 31. Ne5 {[%clk 0:00:11.5]} 31... Bd5 {[%clk
0:00:20.6]} 32. Re2 {[%clk 0:00:07.4]} 32... Rf8+ {[%clk 0:00:17.9]} 33. Ke1
{[%clk 0:00:07.2]} 33... Rf5 {[%clk 0:00:18.5]} 34. Nc4 {[%clk 0:00:06.3]} 34...
Bxc4 {[%clk 0:00:17.9]} 35. dxc4 {[%clk 0:00:07.2]} 35... Rc5 {[%clk 0:00:18]}
36. Rc2 {[%clk 0:00:07.1]} 36... b6 {[%clk 0:00:14.9]} 37. Kd2 {[%clk
0:00:07.6]} 37... Rf5 {[%clk 0:00:14.1]} 38. Kd3 {[%clk 0:00:08.2]} 38... Rf4
{[%clk 0:00:14.5]} 39. Re2 {[%clk 0:00:07.7]} 39... Kf6 {[%clk 0:00:14.2]} 40.
Re4 {[%clk 0:00:07.7]} 40... Rf2 {[%clk 0:00:13.5]} 41. Kxd4 {[%clk 0:00:07.7]}
41... Rxh2 {[%clk 0:00:13.6]} 42. Kd5 {[%clk 0:00:07.6]} 42... h4 {[%clk
0:00:10.3]} 43. Re6+ {[%clk 0:00:07.3]} 43... Kf5 {[%clk 0:00:10.2]} 44. Rxb6
{[%clk 0:00:07.8]} 44... h3 {[%clk 0:00:10.7]} 45. Rb8 {[%clk 0:00:07.6]} 45...
Rd2+ {[%clk 0:00:11.6]} 46. Kc6 {[%clk 0:00:07.3]} 46... h2 {[%clk 0:00:11.5]}
47. Rh8 {[%clk 0:00:07.8]} 47... g5 {[%clk 0:00:11.5]} 48. b6 {[%clk 0:00:07.6]}
48... Rb2 {[%clk 0:00:11]} 49. b7 {[%clk 0:00:07.2]} 49... g4 {[%clk 0:00:11.6]}
50. Kc7 {[%clk 0:00:06.2]} 50... g3 {[%clk 0:00:11.5]} 51. b8=Q {[%clk
0:00:06.8]} 51... Rxb8 {[%clk 0:00:11.8]} 52. Kxb8 {[%clk 0:00:07.7]} 52... g2
{[%clk 0:00:11.8]} 53. Rxh2 {[%clk 0:00:07.7]} 53... g1=Q {[%clk 0:00:12.3]} 54.
Rb2 {[%clk 0:00:05.7]} 54... Qc5 {[%clk 0:00:11.9]} 55. Rb5 {[%clk 0:00:05.3]}
55... Qe5+ {[%clk 0:00:09.3]} 56. Rxe5+ {[%clk 0:00:04.8]} 56... Kxe5 {[%clk
0:00:10.2]} 57. Kc7 {[%clk 0:00:05.5]} 57... Kd4 {[%clk 0:00:10.7]} 58. c5
{[%clk 0:00:05.4]} 58... Kxc5 {[%clk 0:00:11.1]} 1/2-1/2

[Event "Early-Titled-Tuesday-Blitz-October-10-2023"]
[Site "Chess.com"]
[Date "2023.10.10"]
[Round "2"]
[White "wild3000"]
[Black "jerry_77"]
[Result "0-1"]
[WhiteElo "2356"]
[BlackElo "2612"]
[TimeControl "180+1"]
[EndTime "8:18:36 PDT"]
[Termination "jerry_77 won by checkmate"]

1. d4 {[%clk 0:02:52]} 1... Nf6 {[%clk 0:02:57.6]} 2. g3 {[%clk 0:02:52.3]} 2...
e6 {[%clk 0:02:58.1]} 3. Bg2 {[%clk 0:02:53.2]} 3... d5 {[%clk 0:02:59]} 4. Nf3
{[%clk 0:02:53.4]} 4... Be7 {[%clk 0:02:59.7]} 5. O-O {[%clk 0:02:54.3]} 5...
O-O {[%clk 0:03:00.4]} 6. c4 {[%clk 0:02:54.7]} 6... dxc4 {[%clk 0:03:01.3]} 7.
Nc3 {[%clk 0:02:54.9]} 7... c5 {[%clk 0:03:00.2]} 8. Bg5 {[%clk 0:02:46.3]} 8...
Nc6 {[%clk 0:02:58.5]} 9. dxc5 {[%clk 0:02:39]} 9... Qxd1 {[%clk 0:02:54.9]} 10.
Rfxd1 {[%clk 0:02:38]} 10... Bxc5 {[%clk 0:02:50.7]} 11. Rac1 {[%clk 0:02:26.7]}
11... Ng4 {[%clk 0:02:48]} 12. Rf1 {[%clk 0:02:22.6]} 12... h6 {[%clk
0:02:46.5]} 13. Bd2 {[%clk 0:02:21.4]} 13... Rd8 {[%clk 0:02:44.8]} 14. Ne4
{[%clk 0:02:16.9]} 14... Bb6 {[%clk 0:02:44.2]} 15. Rxc4 {[%clk 0:02:13.3]}
15... Nce5 {[%clk 0:02:41.6]} 16. Nxe5 {[%clk 0:02:12.1]} 16... Nxe5 {[%clk
0:02:42.5]} 17. Rc2 {[%clk 0:02:12.1]} 17... Bd7 {[%clk 0:02:41.7]} 18. Nd6
{[%clk 0:02:02.4]} 18... Ba4 {[%clk 0:02:41.3]} 19. b3 {[%clk 0:01:58.6]} 19...
Bxb3 {[%clk 0:02:40.2]} 20. axb3 {[%clk 0:01:58.7]} 20... Rxd6 {[%clk
0:02:40.6]} 21. Bf4 {[%clk 0:01:53.8]} 21... f6 {[%clk 0:02:37.7]} 22. Bxb7
{[%clk 0:01:49.9]} 22... Rad8 {[%clk 0:02:36.6]} 23. Bxe5 {[%clk 0:01:48.9]}
23... fxe5 {[%clk 0:02:34.3]} 24. Ba6 {[%clk 0:01:48.3]} 24... e4 {[%clk
0:02:31.5]} 25. e3 {[%clk 0:01:44.1]} 25... Kf7 {[%clk 0:02:25.7]} 26. Kg2
{[%clk 0:01:40.1]} 26... Kf6 {[%clk 0:02:25.5]} 27. h4 {[%clk 0:01:39.5]} 27...
Rd2 {[%clk 0:02:19.7]} 28. Rxd2 {[%clk 0:01:36.1]} 28... Rxd2 {[%clk 0:02:20.6]}
29. Kg1 {[%clk 0:01:36.1]} 29... Rb2 {[%clk 0:02:18]} 30. Bc4 {[%clk 0:01:35.2]}
30... Ke5 {[%clk 0:02:18.1]} 31. Re1 {[%clk 0:01:27.8]} 31... g5 {[%clk
0:02:18.1]} 32. hxg5 {[%clk 0:01:27.5]} 32... hxg5 {[%clk 0:02:19]} 33. Re2
{[%clk 0:01:26.4]} 33... Rb1+ {[%clk 0:02:15]} 34. Kg2 {[%clk 0:01:25.7]} 34...
a5 {[%clk 0:02:14.4]} 35. Ra2 {[%clk 0:01:23]} 35... Rc1 {[%clk 0:02:14.5]} 36.
Bb5 {[%clk 0:01:15.8]} 36... Rc3 {[%clk 0:02:13.8]} 37. Ba4 {[%clk 0:01:15.1]}
37... Bc5 {[%clk 0:02:12.4]} 38. Rd2 {[%clk 0:01:12.9]} 38... Bb4 {[%clk
0:02:12.5]} 39. Rd4 {[%clk 0:01:06.5]} 39... Rc2 {[%clk 0:02:08.5]} 40. Rd1
{[%clk 0:01:03.7]} 40... Ra2 {[%clk 0:02:06.3]} 41. Kf1 {[%clk 0:01:02]} 41...
Rb2 {[%clk 0:02:06.3]} 42. Kg1 {[%clk 0:00:55.5]} 42... Kf5 {[%clk 0:02:06.6]}
43. Kg2 {[%clk 0:00:52.3]} 43... Bc5 {[%clk 0:02:05.4]} 44. Re1 {[%clk
0:00:49.8]} 44... Bb4 {[%clk 0:01:59.2]} 45. Rd1 {[%clk 0:00:48.7]} 45... Bd2
{[%clk 0:01:59.3]} 46. Kf1 {[%clk 0:00:47.5]} 46... Kg4 {[%clk 0:01:59.3]} 47.
Bb5 {[%clk 0:00:41.4]} 47... Bb4 {[%clk 0:01:52.3]} 48. Be2+ {[%clk 0:00:40.2]}
48... Kf5 {[%clk 0:01:45.1]} 49. g4+ {[%clk 0:00:40.2]} 49... Ke5 {[%clk
0:01:45]} 50. Bc4 {[%clk 0:00:39.7]} 50... Rc2 {[%clk 0:01:45.3]} 51. Bb5 {[%clk
0:00:38]} 51... Rc3 {[%clk 0:01:41.3]} 52. Ba4 {[%clk 0:00:37.4]} 52... Rc7
{[%clk 0:01:41]} 53. Rd8 {[%clk 0:00:36.2]} 53... Rc1+ {[%clk 0:01:38.1]} 54.
Kg2 {[%clk 0:00:36.1]} 54... Rc2 {[%clk 0:01:38.4]} 55. Kf1 {[%clk 0:00:34.2]}
55... Bc5 {[%clk 0:01:38]} 56. Rg8 {[%clk 0:00:33.3]} 56... Kf6 {[%clk
0:01:37.1]} 57. Rc8 {[%clk 0:00:30.3]} 57... Rc1+ {[%clk 0:01:37.2]} 58. Kg2
{[%clk 0:00:29.4]} 58... Bxe3 {[%clk 0:01:37.3]} 59. Rf8+ {[%clk 0:00:25.5]}
59... Kg7 {[%clk 0:01:37.5]} 60. Re8 {[%clk 0:00:25.5]} 60... Rc2 {[%clk
0:01:36.1]} 61. Rxe6 {[%clk 0:00:23.4]} 61... Rxf2+ {[%clk 0:01:36.2]} 62. Kg3
{[%clk 0:00:22.3]} 62... Rf4 {[%clk 0:01:35]} 63. Bc6 {[%clk 0:00:22]} 63...
Bf2+ {[%clk 0:01:35.2]} 64. Kg2 {[%clk 0:00:21.6]} 64... e3 {[%clk 0:01:34.6]}
65. Re4 {[%clk 0:00:21.7]} 65... Kf6 {[%clk 0:01:32.9]} 66. Rxf4+ {[%clk
0:00:21.2]} 66... gxf4 {[%clk 0:01:33.8]} 67. Kf3 {[%clk 0:00:20.1]} 67... Kg5
{[%clk 0:01:33.7]} 68. Bb5 {[%clk 0:00:20.2]} 68... Be1 {[%clk 0:01:34]} 69. Be2
{[%clk 0:00:20.1]} 69... Bb4 {[%clk 0:01:34.9]} 70. Bc4 {[%clk 0:00:20.2]} 70...
Bd6 {[%clk 0:01:35.4]} 71. Be2 {[%clk 0:00:20.5]} 71... Kh4 {[%clk 0:01:35]} 72.
Bc4 {[%clk 0:00:20]} 72... Kg5 {[%clk 0:01:35.5]} 73. Be2 {[%clk 0:00:20.2]}
73... Bf8 {[%clk 0:01:36.4]} 74. Bc4 {[%clk 0:00:20.6]} 74... Bh6 {[%clk
0:01:37.1]} 75. Be2 {[%clk 0:00:20.9]} 75... Kf6 {[%clk 0:01:37.7]} 76. Bc4
{[%clk 0:00:21.3]} 76... Ke5 {[%clk 0:01:38.3]} 77. Be2 {[%clk 0:00:21.5]} 77...
Kd4 {[%clk 0:01:39]} 78. Bc4 {[%clk 0:00:21.8]} 78... a4 {[%clk 0:01:39.4]} 79.
Bf7 {[%clk 0:00:15.1]} 79... a3 {[%clk 0:01:39.4]} 80. b4 {[%clk 0:00:15.5]}
80... Bg5 {[%clk 0:01:39.4]} 81. b5 {[%clk 0:00:13.8]} 81... Kc5 {[%clk
0:01:39.6]} 82. Bc4 {[%clk 0:00:07.9]} 82... Kxc4 {[%clk 0:01:27.3]} 83. b6
{[%clk 0:00:07.9]} 83... a2 {[%clk 0:01:26.4]} 84. b7 {[%clk 0:00:07.8]} 84...
a1=Q {[%clk 0:01:27]} 85. b8=Q {[%clk 0:00:08.1]} 85... Qh1+ {[%clk 0:01:24.9]}
86. Ke2 {[%clk 0:00:08.3]} 86... Qg2+ {[%clk 0:01:25.2]} 87. Kd1 {[%clk
0:00:07]} 87... Qd2# {[%clk 0:01:25.3]} 0-1

[Event "Early-Titled-Tuesday-Blitz-October-10-2023"]
[Site "Chess.com"]
[Date "2023.10.10"]
[Round "2"]
[White "hakanazeri2"]
[Black "topin8"]
[Result "1-0"]
[WhiteElo "2620"]
[BlackElo "2422"]
[TimeControl "180+1"]
[EndTime "8:18:37 PDT"]
[Termination "hakanazeri2 won on time"]

1. e4 {[%clk 0:02:51.4]} 1... e5 {[%clk 0:02:57.4]} 2. Nf3 {[%clk 0:02:50.8]}
2... Nc6 {[%clk 0:02:56.7]} 3. Bb5 {[%clk 0:02:48.7]} 3... Nf6 {[%clk
0:02:53.1]} 4. O-O {[%clk 0:02:44.4]} 4... Nxe4 {[%clk 0:02:52.6]} 5. Re1 {[%clk
0:02:43.3]} 5... Nd6 {[%clk 0:02:50]} 6. Nxe5 {[%clk 0:02:43.2]} 6... Nxe5
{[%clk 0:02:44.6]} 7. Rxe5+ {[%clk 0:02:44.1]} 7... Be7 {[%clk 0:02:44.9]} 8.
Bf1 {[%clk 0:02:44.4]} 8... O-O {[%clk 0:02:43.1]} 9. d4 {[%clk 0:02:44.6]} 9...
Bf6 {[%clk 0:02:40]} 10. Re1 {[%clk 0:02:44.6]} 10... Nf5 {[%clk 0:02:32.6]} 11.
c3 {[%clk 0:02:42.7]} 11... d5 {[%clk 0:02:32.3]} 12. Bf4 {[%clk 0:02:41.4]}
12... Bg5 {[%clk 0:02:19.6]} 13. Qc1 {[%clk 0:02:33.5]} 13... Bxf4 {[%clk
0:02:18.5]} 14. Qxf4 {[%clk 0:02:34.4]} 14... c6 {[%clk 0:02:19.2]} 15. Nd2
{[%clk 0:02:33.9]} 15... Qd6 {[%clk 0:02:15.1]} 16. Qxd6 {[%clk 0:02:32.6]}
16... Nxd6 {[%clk 0:02:15.3]} 17. Bd3 {[%clk 0:02:30.4]} 17... Bf5 {[%clk
0:02:11.3]} 18. Bxf5 {[%clk 0:02:28.4]} 18... Nxf5 {[%clk 0:02:11.8]} 19. Re5
{[%clk 0:02:29.1]} 19... Nd6 {[%clk 0:02:06.8]} 20. Nf3 {[%clk 0:02:25.8]} 20...
Rfe8 {[%clk 0:02:06.4]} 21. Rae1 {[%clk 0:02:18.7]} 21... Rxe5 {[%clk
0:01:40.8]} 22. Nxe5 {[%clk 0:02:17.6]} 22... f6 {[%clk 0:01:30.6]} 23. Nd3
{[%clk 0:02:15.6]} 23... Re8 {[%clk 0:01:26.6]} 24. Rxe8+ {[%clk 0:02:14.3]}
24... Nxe8 {[%clk 0:01:27.1]} 25. f3 {[%clk 0:02:15.2]} 25... Nd6 {[%clk
0:01:26]} 26. Kf2 {[%clk 0:02:15.4]} 26... Kf7 {[%clk 0:01:26.6]} 27. a4 {[%clk
0:02:15.4]} 27... a5 {[%clk 0:01:01.1]} 28. b4 {[%clk 0:01:56.1]} 28... Nc4
{[%clk 0:00:59.5]} 29. Ke2 {[%clk 0:01:41.2]} 29... Ke7 {[%clk 0:00:54.7]} 30.
bxa5 {[%clk 0:01:32.8]} 30... Nxa5 {[%clk 0:00:50.6]} 31. g4 {[%clk 0:01:24.3]}
31... g5 {[%clk 0:00:23.7]} 32. f4 {[%clk 0:01:19.2]} 32... h6 {[%clk
0:00:22.8]} 33. f5 {[%clk 0:01:18.9]} 33... Nc4 {[%clk 0:00:19.6]} 34. h3 {[%clk
0:01:16.4]} 34... b6 {[%clk 0:00:19.9]} 35. Nb4 {[%clk 0:01:08.9]} 35... Kd6
{[%clk 0:00:17.1]} 36. Nd3 {[%clk 0:01:09.5]} 36... Ke7 {[%clk 0:00:14.1]} 37.
Kd1 {[%clk 0:01:07.9]} 37... Ne3+ {[%clk 0:00:12.8]} 38. Kd2 {[%clk 0:01:07.3]}
38... Nc4+ {[%clk 0:00:13.3]} 39. Kc2 {[%clk 0:01:07.1]} 39... Ne3+ {[%clk
0:00:13.4]} 40. Kb3 {[%clk 0:01:04.4]} 40... Kd6 {[%clk 0:00:09.8]} 41. Nc1
{[%clk 0:00:55.7]} 41... Ng2 {[%clk 0:00:08.4]} 42. Ne2 {[%clk 0:00:54]} 42...
Ne3 {[%clk 0:00:06.1]} 43. Ng3 {[%clk 0:00:52.9]} 43... Nc4 {[%clk 0:00:04.7]}
44. Nh5 {[%clk 0:00:52.7]} 44... Ke7 {[%clk 0:00:05.2]} 45. Ng7 {[%clk
0:00:53.1]} 45... b5 {[%clk 0:00:03.2]} 46. axb5 {[%clk 0:00:52.2]} 46... cxb5
{[%clk 0:00:03.6]} 47. Kb4 {[%clk 0:00:52.9]} 47... Nd6 {[%clk 0:00:03.2]} 48.
Ne6 {[%clk 0:00:51.1]} 48... Ne4 {[%clk 0:00:03.4]} 49. Nc7 {[%clk 0:00:51]}
49... Kd6 {[%clk 0:00:02.4]} 50. Nxb5+ {[%clk 0:00:51.2]} 50... Kc6 {[%clk
0:00:03]} 51. c4 {[%clk 0:00:29.5]} 51... dxc4 {[%clk 0:00:03]} 52. Kxc4 {[%clk
0:00:29.9]} 52... Nf2 {[%clk 0:00:03.5]} 53. d5+ {[%clk 0:00:29.6]} 53... Kd7
{[%clk 0:00:04]} 54. Nc3 {[%clk 0:00:27]} 54... Nxh3 {[%clk 0:00:04.1]} 55. Ne4
{[%clk 0:00:27.7]} 55... Ke7 {[%clk 0:00:03.7]} 56. d6+ {[%clk 0:00:28.1]} 56...
Kd7 {[%clk 0:00:02.3]} 57. Kc5 {[%clk 0:00:28.4]} 57... Nf4 {[%clk 0:00:02]} 58.
Nxf6+ {[%clk 0:00:29.3]} 58... Kd8 {[%clk 0:00:02.4]} 59. Nh5 {[%clk 0:00:21.5]}
59... Nd3+ {[%clk 0:00:02.4]} 60. Kd5 {[%clk 0:00:21.3]} 1-0

[Event "Early-Titled-Tuesday-Blitz-October-10-2023"]
[Site "Chess.com"]
[Date "2023.10.10"]
[Round "2"]
[White "PeshkaCh"]
[Black "Likvidator228"]
[Result "1-0"]
[WhiteElo "2825"]
[BlackElo "2566"]
[TimeControl "180+1"]
[EndTime "8:18:41 PDT"]
[Termination "PeshkaCh won on time"]

1. Nf3 {[%clk 0:03:00.9]} 1... d5 {[%clk 0:02:58]} 2. d4 {[%clk 0:03:00.3]} 2...
c6 {[%clk 0:02:55.4]} 3. c4 {[%clk 0:03:00.8]} 3... e6 {[%clk 0:02:55.7]} 4. e3
{[%clk 0:03:00.9]} 4... Nf6 {[%clk 0:02:54.5]} 5. Nbd2 {[%clk 0:02:59.6]} 5...
Nbd7 {[%clk 0:02:54.1]} 6. Bd3 {[%clk 0:03:00.2]} 6... dxc4 {[%clk 0:02:49.3]}
7. Nxc4 {[%clk 0:03:00.1]} 7... b5 {[%clk 0:02:49.9]} 8. Nce5 {[%clk 0:03:00.2]}
8... Bb7 {[%clk 0:02:49.3]} 9. Nxd7 {[%clk 0:02:59.6]} 9... Nxd7 {[%clk
0:02:45.4]} 10. O-O {[%clk 0:03:00.2]} 10... Be7 {[%clk 0:02:44.9]} 11. Qc2
{[%clk 0:02:59.6]} 11... a6 {[%clk 0:02:43.9]} 12. a3 {[%clk 0:02:59]} 12... c5
{[%clk 0:02:38.7]} 13. Be4 {[%clk 0:02:54]} 13... Bxe4 {[%clk 0:02:31.3]} 14.
Qxe4 {[%clk 0:02:54.9]} 14... O-O {[%clk 0:02:31.4]} 15. Bd2 {[%clk 0:02:52]}
15... Nf6 {[%clk 0:02:30.8]} 16. Qc2 {[%clk 0:02:50.3]} 16... Rc8 {[%clk
0:02:28.6]} 17. dxc5 {[%clk 0:02:49.7]} 17... Rxc5 {[%clk 0:02:24]} 18. Bc3
{[%clk 0:02:50.2]} 18... Qa8 {[%clk 0:02:13.6]} 19. Qe2 {[%clk 0:02:48.7]} 19...
Rfc8 {[%clk 0:02:11.2]} 20. a4 {[%clk 0:02:45.7]} 20... Qb7 {[%clk 0:02:09.5]}
21. axb5 {[%clk 0:02:44.2]} 21... axb5 {[%clk 0:02:09.1]} 22. Bd4 {[%clk
0:02:37.9]} 22... R5c7 {[%clk 0:02:02]} 23. Ra7 {[%clk 0:02:32.4]} 23... Qd5
{[%clk 0:01:59.6]} 24. Rxc7 {[%clk 0:02:32.5]} 24... Rxc7 {[%clk 0:02:00.2]} 25.
Rd1 {[%clk 0:02:33.4]} 25... Qc4 {[%clk 0:01:56.8]} 26. Qxc4 {[%clk 0:02:27.2]}
26... Rxc4 {[%clk 0:01:52.5]} 27. Ra1 {[%clk 0:02:17.7]} 27... h6 {[%clk
0:01:49]} 28. h3 {[%clk 0:02:14.7]} 28... Rc7 {[%clk 0:01:36.7]} 29. Ra8+ {[%clk
0:02:06.4]} 29... Kh7 {[%clk 0:01:36.5]} 30. Rb8 {[%clk 0:02:06.9]} 30... b4
{[%clk 0:01:26.7]} 31. g3 {[%clk 0:01:37.5]} 31... Ne4 {[%clk 0:01:21.8]} 32.
Ne5 {[%clk 0:00:50]} 32... Bf6 {[%clk 0:01:21.2]} 33. Rxb4 {[%clk 0:00:46.1]}
33... Rc1+ {[%clk 0:01:08.7]} 34. Kg2 {[%clk 0:00:45.9]} 34... Rc2 {[%clk
0:01:06.8]} 35. Nd3 {[%clk 0:00:43.3]} 35... Bxd4 {[%clk 0:00:52.8]} 36. Rxd4
{[%clk 0:00:44.2]} 36... f5 {[%clk 0:00:52.5]} 37. b4 {[%clk 0:00:38]} 37... Rd2
{[%clk 0:00:46.9]} 38. b5 {[%clk 0:00:35.6]} 38... e5 {[%clk 0:00:47.2]} 39. b6
{[%clk 0:00:11.8]} 39... exd4 {[%clk 0:00:33.1]} 40. b7 {[%clk 0:00:12.3]} 40...
Nxf2 {[%clk 0:00:26]} 41. b8=Q {[%clk 0:00:05.9]} 41... Nxd3+ {[%clk 0:00:26]}
42. Kg1 {[%clk 0:00:04.6]} 42... dxe3 {[%clk 0:00:22.5]} 43. Qb5 {[%clk
0:00:05.2]} 43... Rd1+ {[%clk 0:00:14.4]} 44. Kg2 {[%clk 0:00:05.4]} 44... Rd2+
{[%clk 0:00:13.1]} 45. Kg1 {[%clk 0:00:05.7]} 45... Rd1+ {[%clk 0:00:08]} 46.
Kg2 {[%clk 0:00:06.1]} 46... Rd2+ {[%clk 0:00:07]} 47. Kf3 {[%clk 0:00:06.6]}
47... Ne1+ {[%clk 0:00:03.9]} 48. Kxe3 {[%clk 0:00:06.4]} 48... Rd8 {[%clk
0:00:02.2]} 49. Qxf5+ {[%clk 0:00:06.2]} 49... Kh8 {[%clk 0:00:02.7]} 50. Qb1
{[%clk 0:00:03.9]} 50... Re8+ {[%clk 0:00:02.7]} 51. Kf2 {[%clk 0:00:04.1]}
51... Kg8 {[%clk 0:00:02.7]} 52. Qb5 {[%clk 0:00:03.1]} 52... Kf8 {[%clk
0:00:02.8]} 53. Qf5+ {[%clk 0:00:03.2]} 53... Kg8 {[%clk 0:00:03]} 54. Qd5+
{[%clk 0:00:03.2]} 54... Kf8 {[%clk 0:00:03.6]} 55. Qb3 {[%clk 0:00:03.6]} 55...
Re7 {[%clk 0:00:02.7]} 56. g4 {[%clk 0:00:03.3]} 1-0